[Event "*** SCC Grand Prix: Titled Tuesday Blitz"]
[Site "Chess.com"]
[Date "2020.09.08"]
[Round "2"]
[White "pooh2012"]
[Black "Synctel"]
[Result "1-0"]
[WhiteElo "2365"]
[BlackElo "1990"]
[TimeControl "180+1"]
[EndTime "10:18:32 PDT"]
[Termination "pooh2012 won on time"]

1. d4 {[%clk 0:03:00.9]} 1... Nf6 {[%clk 0:02:59.1]} 2. c4 {[%clk 0:03:00.1]}
2... e6 {[%clk 0:02:59]} 3. Nc3 {[%clk 0:02:59.1]} 3... Bb4 {[%clk 0:02:59.9]}
4. Qc2 {[%clk 0:02:58.9]} 4... Nc6 {[%clk 0:02:58.9]} 5. Nf3 {[%clk 0:02:55.6]}
5... h6 {[%clk 0:02:57.5]} 6. Bd2 {[%clk 0:02:53.9]} 6... O-O {[%clk 0:02:52.4]}
7. a3 {[%clk 0:02:50.4]} 7... Bxc3 {[%clk 0:02:51.6]} 8. Bxc3 {[%clk 0:02:51.3]}
8... d6 {[%clk 0:02:51.1]} 9. e4 {[%clk 0:02:48.7]} 9... Re8 {[%clk 0:02:43.9]}
10. e5 {[%clk 0:02:47]} 10... dxe5 {[%clk 0:02:37.6]} 11. dxe5 {[%clk
0:02:47.9]} 11... Nd7 {[%clk 0:02:28.9]} 12. O-O-O {[%clk 0:02:42.2]} 12... Qe7
{[%clk 0:02:25]} 13. g4 {[%clk 0:02:31.7]} 13... b6 {[%clk 0:02:11.8]} 14. h4
{[%clk 0:02:22.6]} 14... Bb7 {[%clk 0:02:10.7]} 15. Rh3 {[%clk 0:02:20.8]} 15...
a5 {[%clk 0:01:54.6]} 16. g5 {[%clk 0:02:18.9]} 16... h5 {[%clk 0:01:49.8]} 17.
Bd3 {[%clk 0:02:11.9]} 17... g6 {[%clk 0:01:49.5]} 18. Be4 {[%clk 0:02:04.2]}
18... Nc5 {[%clk 0:01:46.3]} 19. Nd2 {[%clk 0:01:57]} 19... Rad8 {[%clk
0:01:28.9]} 20. Re3 {[%clk 0:01:51.1]} 20... a4 {[%clk 0:01:27.4]} 21. Kb1
{[%clk 0:01:49.3]} 21... Na5 {[%clk 0:01:19.2]} 22. Bxb7 {[%clk 0:01:48.6]}
22... Naxb7 {[%clk 0:01:17.8]} 23. Bb4 {[%clk 0:01:46.3]} 23... Qd7 {[%clk
0:01:10.8]} 24. Ree1 {[%clk 0:01:18.2]} 24... Qd3 {[%clk 0:01:04.3]} 25. Re3
{[%clk 0:00:58.7]} 25... Qxc2+ {[%clk 0:01:00.8]} 26. Kxc2 {[%clk 0:00:59.6]}
26... Rd7 {[%clk 0:00:48.3]} 27. Ne4 {[%clk 0:00:54.6]} 27... Rxd1 {[%clk
0:00:34]} 28. Nf6+ {[%clk 0:00:53.1]} 28... Kf8 {[%clk 0:00:31.4]} 29. Kxd1
{[%clk 0:00:50.1]} 29... Rc8 {[%clk 0:00:29.1]} 30. Rd3 {[%clk 0:00:39.1]} 30...
Rd8 {[%clk 0:00:18.4]} 31. Bxc5+ {[%clk 0:00:32.1]} 31... bxc5 {[%clk
0:00:15.7]} 32. Rxd8+ {[%clk 0:00:32.3]} 32... Nxd8 {[%clk 0:00:15.9]} 33. Nd7+
{[%clk 0:00:33.2]} 33... Ke7 {[%clk 0:00:13.1]} 34. Nxc5 {[%clk 0:00:34.1]}
34... Nc6 {[%clk 0:00:11.9]} 35. Nd3 {[%clk 0:00:21.7]} 35... Na5 {[%clk
0:00:09.6]} 36. Kc2 {[%clk 0:00:18.1]} 36... Nxc4 {[%clk 0:00:09.5]} 37. Kc3
{[%clk 0:00:18.7]} 37... Nb6 {[%clk 0:00:09.4]} 38. Kb4 {[%clk 0:00:17.8]} 38...
Kd7 {[%clk 0:00:07.9]} 39. Kb5 {[%clk 0:00:17.6]} 39... Nd5 {[%clk 0:00:05.2]}
40. Nc5+ {[%clk 0:00:17.6]} 40... Kc8 {[%clk 0:00:03.7]} 41. Kxa4 {[%clk
0:00:08.1]} 41... Nf4 {[%clk 0:00:03.9]} 42. Kb5 {[%clk 0:00:06.1]} 42... Nh3
{[%clk 0:00:03.2]} 43. f3 {[%clk 0:00:05.1]} 43... Ng1 {[%clk 0:00:02.8]} 44. f4
{[%clk 0:00:04.3]} 44... Nf3 {[%clk 0:00:03.2]} 45. a4 {[%clk 0:00:04.4]} 45...
Nxh4 {[%clk 0:00:02.8]} 46. a5 {[%clk 0:00:05]} 46... Kb8 {[%clk 0:00:02.7]} 47.
Kc6 {[%clk 0:00:04.9]} 47... Nf5 {[%clk 0:00:01.8]} 48. Ne4 {[%clk 0:00:05.1]}
48... h4 {[%clk 0:00:01.6]} 49. Kd7 {[%clk 0:00:05.5]} 49... h3 {[%clk
0:00:01.8]} 50. Ke8 {[%clk 0:00:05.8]} 50... h2 {[%clk 0:00:01.9]} 51. Nf2
{[%clk 0:00:05.9]} 1-0

[Event "*** SCC Grand Prix: Titled Tuesday Blitz"]
[Site "Chess.com"]
[Date "2020.09.08"]
[Round "2"]
[White "vladislavkovalev"]
[Black "Bykov_Egor"]
[Result "1-0"]
[WhiteElo "2854"]
[BlackElo "2543"]
[TimeControl "180+1"]
[EndTime "10:18:34 PDT"]
[Termination "vladislavkovalev won by resignation"]

1. e4 {[%clk 0:03:00.9]} 1... e5 {[%clk 0:02:59.2]} 2. Nf3 {[%clk 0:03:01.1]}
2... Nc6 {[%clk 0:02:59.4]} 3. Bb5 {[%clk 0:03:01.8]} 3... a6 {[%clk 0:02:59.2]}
4. Ba4 {[%clk 0:03:02.2]} 4... Nf6 {[%clk 0:02:59.2]} 5. O-O {[%clk 0:03:02.7]}
5... Be7 {[%clk 0:02:59.4]} 6. d3 {[%clk 0:03:02.3]} 6... b5 {[%clk 0:02:59.2]}
7. Bb3 {[%clk 0:03:03]} 7... O-O {[%clk 0:02:58.6]} 8. Nc3 {[%clk 0:03:03.6]}
8... d6 {[%clk 0:02:54]} 9. a3 {[%clk 0:03:03.7]} 9... h6 {[%clk 0:02:49.9]} 10.
Nd5 {[%clk 0:02:54.7]} 10... Nxd5 {[%clk 0:02:38]} 11. Bxd5 {[%clk 0:02:55.6]}
11... Bd7 {[%clk 0:02:33]} 12. a4 {[%clk 0:02:45.4]} 12... Rb8 {[%clk
0:02:09.4]} 13. axb5 {[%clk 0:02:44.7]} 13... axb5 {[%clk 0:02:10.3]} 14. c3
{[%clk 0:02:42.9]} 14... Bf6 {[%clk 0:02:08]} 15. b4 {[%clk 0:02:33]} 15... Ne7
{[%clk 0:02:07.4]} 16. Bb3 {[%clk 0:02:33.3]} 16... Ra8 {[%clk 0:02:02.8]} 17.
Be3 {[%clk 0:02:30.9]} 17... Ng6 {[%clk 0:01:49.2]} 18. h3 {[%clk 0:02:18.3]}
18... Rxa1 {[%clk 0:01:44.6]} 19. Qxa1 {[%clk 0:02:19.2]} 19... Qa8 {[%clk
0:01:44.7]} 20. Qb2 {[%clk 0:02:04.6]} 20... Qb7 {[%clk 0:01:43.8]} 21. Ra1
{[%clk 0:02:04.6]} 21... Ra8 {[%clk 0:01:44.3]} 22. Ra2 {[%clk 0:02:05]} 22...
Nf4 {[%clk 0:01:35.7]} 23. Bxf4 {[%clk 0:01:22.8]} 23... exf4 {[%clk 0:01:36.6]}
24. Bd5 {[%clk 0:01:15]} 24... c6 {[%clk 0:01:34.1]} 25. Bb3 {[%clk 0:01:15.5]}
25... g5 {[%clk 0:01:24.7]} 26. d4 {[%clk 0:01:14.7]} 26... Re8 {[%clk
0:01:17.7]} 27. Qc2 {[%clk 0:01:12.1]} 27... Kg7 {[%clk 0:01:07.5]} 28. Ra1
{[%clk 0:01:03.5]} 28... c5 {[%clk 0:00:58.9]} 29. bxc5 {[%clk 0:01:03.5]} 29...
dxc5 {[%clk 0:00:41.8]} 30. e5 {[%clk 0:00:47.3]} 30... Bd8 {[%clk 0:00:41.2]}
31. Bxf7 {[%clk 0:00:39]} 31... Kxf7 {[%clk 0:00:20.7]} 32. Qh7+ {[%clk
0:00:39.3]} 32... Ke6 {[%clk 0:00:17.6]} 33. Qxh6+ {[%clk 0:00:33.7]} 33... Kf7
{[%clk 0:00:14.8]} 34. Qh7+ {[%clk 0:00:30.2]} 34... Ke6 {[%clk 0:00:14.6]} 35.
Qg6+ {[%clk 0:00:25.2]} 35... Kd5 {[%clk 0:00:15]} 36. Qd6+ {[%clk 0:00:24.8]}
36... Ke4 {[%clk 0:00:15.4]} 37. Re1+ {[%clk 0:00:20.6]} 37... Kf5 {[%clk
0:00:14.9]} 38. e6 {[%clk 0:00:11.4]} 38... Bc6 {[%clk 0:00:09.1]} 39. d5 {[%clk
0:00:08.4]} 39... Bxd5 {[%clk 0:00:04.7]} 40. Re5+ {[%clk 0:00:08.6]} 40... Kg6
{[%clk 0:00:05]} 41. Rxd5 {[%clk 0:00:08.2]} 41... Bf6 {[%clk 0:00:04.4]} 42.
Rxc5 {[%clk 0:00:06.2]} 42... Qa8 {[%clk 0:00:04.3]} 43. Qd3+ {[%clk 0:00:06.5]}
43... Kh6 {[%clk 0:00:03.4]} 44. Qf5 {[%clk 0:00:05.2]} 44... Rd8 {[%clk
0:00:01.5]} 45. Qxf6+ {[%clk 0:00:04.8]} 1-0

[Event "*** SCC Grand Prix: Titled Tuesday Blitz"]
[Site "Chess.com"]
[Date "2020.09.08"]
[Round "2"]
[White "Euge_chess"]
[Black "Sjakkerntobi"]
[Result "1/2-1/2"]
[WhiteElo "2111"]
[BlackElo "2382"]
[TimeControl "180+1"]
[EndTime "10:18:34 PDT"]
[Termination "Game drawn by repetition"]

1. e4 {[%clk 0:03:00.9]} 1... e6 {[%clk 0:02:55]} 2. d4 {[%clk 0:03:00]} 2... d5
{[%clk 0:02:55.7]} 3. exd5 {[%clk 0:03:00.3]} 3... exd5 {[%clk 0:02:56.5]} 4. c4
{[%clk 0:03:01]} 4... Nf6 {[%clk 0:02:57.2]} 5. Nf3 {[%clk 0:02:59.3]} 5... Nc6
{[%clk 0:02:56.6]} 6. Nc3 {[%clk 0:02:59.2]} 6... Bg4 {[%clk 0:02:55.5]} 7. Be2
{[%clk 0:02:57.7]} 7... Be7 {[%clk 0:02:55.6]} 8. O-O {[%clk 0:02:50.9]} 8...
O-O {[%clk 0:02:55]} 9. Be3 {[%clk 0:02:49.7]} 9... Re8 {[%clk 0:02:50.8]} 10.
Ne5 {[%clk 0:02:43.1]} 10... Bxe2 {[%clk 0:02:35.9]} 11. Qxe2 {[%clk 0:02:24.2]}
11... Nxe5 {[%clk 0:02:04.6]} 12. dxe5 {[%clk 0:02:23.3]} 12... Nd7 {[%clk
0:02:04.1]} 13. Nxd5 {[%clk 0:02:04.9]} 13... Nxe5 {[%clk 0:02:00.4]} 14. Rad1
{[%clk 0:01:54.9]} 14... Qc8 {[%clk 0:01:56.5]} 15. Bf4 {[%clk 0:01:25.7]} 15...
Bd6 {[%clk 0:01:36.6]} 16. Rfe1 {[%clk 0:01:10.2]} 16... Qf5 {[%clk 0:01:21.5]}
17. Bg3 {[%clk 0:00:50.8]} 17... f6 {[%clk 0:01:10.2]} 18. Ne3 {[%clk
0:00:49.8]} 18... Qg6 {[%clk 0:01:03.7]} 19. a3 {[%clk 0:00:38.7]} 19... a5
{[%clk 0:00:59.4]} 20. f4 {[%clk 0:00:30]} 20... Nc6 {[%clk 0:00:50.1]} 21. Qf3
{[%clk 0:00:20.4]} 21... Bc5 {[%clk 0:00:42.5]} 22. Bf2 {[%clk 0:00:15.7]} 22...
a4 {[%clk 0:00:25]} 23. Qd5+ {[%clk 0:00:15.2]} 23... Qf7 {[%clk 0:00:22.6]} 24.
Qxc5 {[%clk 0:00:14.6]} 24... Na5 {[%clk 0:00:19.6]} 25. Qd5 {[%clk 0:00:14.1]}
25... c6 {[%clk 0:00:16.2]} 26. Qxf7+ {[%clk 0:00:13.8]} 26... Kxf7 {[%clk
0:00:17.1]} 27. Rd7+ {[%clk 0:00:12.6]} 27... Re7 {[%clk 0:00:16.9]} 28. Rxe7+
{[%clk 0:00:12.3]} 28... Kxe7 {[%clk 0:00:17.8]} 29. Nf5+ {[%clk 0:00:08.8]}
29... Kf7 {[%clk 0:00:17.9]} 30. Nd6+ {[%clk 0:00:08.4]} 30... Kg6 {[%clk
0:00:18.8]} 31. g4 {[%clk 0:00:07.6]} 31... h5 {[%clk 0:00:18.6]} 32. f5+ {[%clk
0:00:07.2]} 32... Kg5 {[%clk 0:00:16.8]} 33. h3 {[%clk 0:00:06]} 33... hxg4
{[%clk 0:00:17]} 34. Be3+ {[%clk 0:00:05.9]} 34... Kh4 {[%clk 0:00:17]} 35. hxg4
{[%clk 0:00:05.7]} 35... Kxg4 {[%clk 0:00:17.9]} 36. Kf2 {[%clk 0:00:05.7]}
36... Rd8 {[%clk 0:00:09]} 37. Rg1+ {[%clk 0:00:06.6]} 37... Kh5 {[%clk
0:00:08.8]} 38. Ne4 {[%clk 0:00:06.5]} 38... Nxc4 {[%clk 0:00:07.3]} 39. Kf3
{[%clk 0:00:02.7]} 39... Ne5+ {[%clk 0:00:07]} 40. Kf4 {[%clk 0:00:01.9]} 40...
Nd3+ {[%clk 0:00:07.2]} 41. Kf3 {[%clk 0:00:02.1]} 41... Ne5+ {[%clk 0:00:06.8]}
42. Kf2 {[%clk 0:00:02.4]} 42... Ng4+ {[%clk 0:00:05.7]} 43. Kf3 {[%clk
0:00:02.3]} 43... Ne5+ {[%clk 0:00:01.8]} 1/2-1/2

[Event "*** SCC Grand Prix: Titled Tuesday Blitz"]
[Site "Chess.com"]
[Date "2020.09.08"]
[Round "2"]
[White "LuckSlayeer"]
[Black "leejunhyeok"]
[Result "1-0"]
[WhiteElo "2485"]
[BlackElo "2672"]
[TimeControl "180+1"]
[EndTime "10:18:35 PDT"]
[Termination "LuckSlayeer won on time"]

1. Nf3 {[%clk 0:03:00.9]} 1... g6 {[%clk 0:03:00.2]} 2. c4 {[%clk 0:02:57.3]}
2... Bg7 {[%clk 0:03:00.5]} 3. g3 {[%clk 0:02:57.9]} 3... f5 {[%clk 0:02:59.1]}
4. Bg2 {[%clk 0:02:56.9]} 4... Nf6 {[%clk 0:02:59.7]} 5. O-O {[%clk 0:02:56.5]}
5... O-O {[%clk 0:03:00.1]} 6. d3 {[%clk 0:02:57]} 6... d6 {[%clk 0:02:57.8]} 7.
e4 {[%clk 0:02:51.5]} 7... e5 {[%clk 0:02:56.2]} 8. Nc3 {[%clk 0:02:50]} 8...
Nc6 {[%clk 0:02:51.5]} 9. Re1 {[%clk 0:02:39.6]} 9... f4 {[%clk 0:02:48.2]} 10.
gxf4 {[%clk 0:02:39.5]} 10... Nh5 {[%clk 0:02:48.3]} 11. f5 {[%clk 0:02:19.9]}
11... gxf5 {[%clk 0:02:44.8]} 12. Nxe5 {[%clk 0:02:09]} 12... Nxe5 {[%clk
0:02:45.1]} 13. Qxh5 {[%clk 0:02:05.6]} 13... Nxd3 {[%clk 0:02:42.4]} 14. Rd1
{[%clk 0:01:20.7]} 14... Ne5 {[%clk 0:02:26.3]} 15. Bg5 {[%clk 0:01:12.2]} 15...
Qd7 {[%clk 0:02:19.4]} 16. Nd5 {[%clk 0:01:02.3]} 16... Ng6 {[%clk 0:01:41.1]}
17. Rd3 {[%clk 0:00:33.7]} 17... fxe4 {[%clk 0:01:18.4]} 18. Rh3 {[%clk
0:00:16.1]} 18... Ne5 {[%clk 0:00:24.5]} 19. Ne7+ {[%clk 0:00:07]} 19... Qxe7
{[%clk 0:00:24.9]} 20. Bxe7 {[%clk 0:00:07.5]} 20... Bxh3 {[%clk 0:00:24.9]} 21.
Bxf8 {[%clk 0:00:05.6]} 21... Bg4 {[%clk 0:00:24.9]} 22. Qg5 {[%clk 0:00:03.8]}
22... Rxf8 {[%clk 0:00:23.1]} 23. Bxe4 {[%clk 0:00:04.3]} 23... Bf3 {[%clk
0:00:18.4]} 24. Qe3 {[%clk 0:00:04.5]} 24... h5 {[%clk 0:00:09.2]} 25. Bxf3
{[%clk 0:00:04.1]} 25... Rxf3 {[%clk 0:00:10.1]} 26. Qe4 {[%clk 0:00:03.9]}
26... Bh6 {[%clk 0:00:09.1]} 27. Re1 {[%clk 0:00:03.4]} 27... Rf4 {[%clk
0:00:09.6]} 28. Qe3 {[%clk 0:00:02.6]} 28... Rg4+ {[%clk 0:00:09]} 29. Qg3
{[%clk 0:00:03.2]} 29... h4 {[%clk 0:00:09.2]} 30. Qxg4+ {[%clk 0:00:02.8]}
30... Nxg4 {[%clk 0:00:10.1]} 31. Re7 {[%clk 0:00:03.1]} 31... Bg7 {[%clk
0:00:07.5]} 32. Rxc7 {[%clk 0:00:03.2]} 32... Bd4 {[%clk 0:00:07.8]} 33. Rxb7
{[%clk 0:00:03.1]} 33... Bxf2+ {[%clk 0:00:08]} 34. Kg2 {[%clk 0:00:03.5]} 34...
Bc5 {[%clk 0:00:08.1]} 35. b4 {[%clk 0:00:03.6]} 35... Bb6 {[%clk 0:00:07.7]}
36. a4 {[%clk 0:00:02.9]} 36... Ne3+ {[%clk 0:00:08.1]} 37. Kf3 {[%clk
0:00:03.1]} 37... Nxc4 {[%clk 0:00:08.7]} 38. a5 {[%clk 0:00:03.8]} 38... Ne5+
{[%clk 0:00:09.2]} 39. Ke4 {[%clk 0:00:04]} 39... Bg1 {[%clk 0:00:09.4]} 40. b5
{[%clk 0:00:04.1]} 40... Nc4 {[%clk 0:00:08.9]} 41. a6 {[%clk 0:00:03.6]} 41...
Bb6 {[%clk 0:00:08.1]} 42. Kd5 {[%clk 0:00:04]} 42... Ne3+ {[%clk 0:00:07.8]}
43. Kxd6 {[%clk 0:00:04.6]} 43... Nc4+ {[%clk 0:00:06.5]} 44. Kc6 {[%clk
0:00:04.9]} 44... h3 {[%clk 0:00:05.9]} 45. Rxb6 {[%clk 0:00:03.6]} 45... Nxb6
{[%clk 0:00:06.5]} 46. Kb7 {[%clk 0:00:04]} 46... Nd5 {[%clk 0:00:01.1]} 47.
Kxa7 {[%clk 0:00:04.4]} 1-0

[Event "*** SCC Grand Prix: Titled Tuesday Blitz"]
[Site "Chess.com"]
[Date "2020.09.08"]
[Round "2"]
[White "Tooweak2slow03"]
[Black "lider34"]
[Result "1-0"]
[WhiteElo "2792"]
[BlackElo "2408"]
[TimeControl "180+1"]
[EndTime "10:18:35 PDT"]
[Termination "Tooweak2slow03 won by resignation"]

1. e4 {[%clk 0:03:00.9]} 1... c6 {[%clk 0:02:59.1]} 2. Nf3 {[%clk 0:02:58.5]}
2... d5 {[%clk 0:03:00]} 3. Nc3 {[%clk 0:02:59]} 3... dxe4 {[%clk 0:02:59.5]} 4.
Nxe4 {[%clk 0:02:59.9]} 4... Nf6 {[%clk 0:02:59.8]} 5. Qe2 {[%clk 0:03:00]} 5...
Nxe4 {[%clk 0:02:59.5]} 6. Qxe4 {[%clk 0:03:00.9]} 6... Qd5 {[%clk 0:02:59.5]}
7. Qf4 {[%clk 0:03:00.8]} 7... Qf5 {[%clk 0:02:53.4]} 8. Qe3 {[%clk 0:03:00.4]}
8... Qe6 {[%clk 0:02:52]} 9. b3 {[%clk 0:03:00.2]} 9... f6 {[%clk 0:02:46.3]}
10. Bb2 {[%clk 0:02:56.8]} 10... Qxe3+ {[%clk 0:02:45]} 11. fxe3 {[%clk
0:02:57.7]} 11... Bg4 {[%clk 0:02:40.7]} 12. O-O-O {[%clk 0:02:56.2]} 12... Nd7
{[%clk 0:02:39.3]} 13. Be2 {[%clk 0:02:25.9]} 13... e6 {[%clk 0:02:38.7]} 14. h3
{[%clk 0:02:23.3]} 14... Bh5 {[%clk 0:02:36.6]} 15. g4 {[%clk 0:02:23.5]} 15...
Bf7 {[%clk 0:02:31.6]} 16. g5 {[%clk 0:02:24.4]} 16... Be7 {[%clk 0:02:27.9]}
17. h4 {[%clk 0:02:20.6]} 17... O-O-O {[%clk 0:02:25.8]} 18. Nd4 {[%clk
0:02:15.6]} 18... fxg5 {[%clk 0:02:18]} 19. hxg5 {[%clk 0:02:14]} 19... Bxg5
{[%clk 0:02:17.5]} 20. Bc4 {[%clk 0:02:14.1]} 20... Rde8 {[%clk 0:02:14.2]} 21.
Nf5 {[%clk 0:02:06.1]} 21... exf5 {[%clk 0:02:06.6]} 22. Bxf7 {[%clk 0:02:07]}
22... Re7 {[%clk 0:01:55.4]} 23. Bg6 {[%clk 0:02:04.4]} 23... h6 {[%clk
0:01:41.7]} 24. Bxf5 {[%clk 0:02:02.3]} 24... Kc7 {[%clk 0:01:41.6]} 25. Rdf1
{[%clk 0:01:57]} 25... Rf8 {[%clk 0:01:35.5]} 26. Ba3 {[%clk 0:01:55.3]} 26...
c5 {[%clk 0:01:31.1]} 27. Bxd7 {[%clk 0:01:52.3]} 27... Rxf1+ {[%clk 0:01:29.4]}
28. Rxf1 {[%clk 0:01:53.2]} 28... Rxd7 {[%clk 0:01:28.5]} 29. Bxc5 {[%clk
0:01:49.4]} 29... b6 {[%clk 0:01:27.2]} 30. Bd4 {[%clk 0:01:46.2]} 30... Kd6
{[%clk 0:01:22.8]} 31. c4 {[%clk 0:01:43.4]} 31... Ke6 {[%clk 0:01:21.8]} 32.
Kc2 {[%clk 0:01:40.9]} 32... Rf7 {[%clk 0:01:16.9]} 33. Rxf7 {[%clk 0:01:28.4]}
33... Kxf7 {[%clk 0:01:16.3]} 34. Kd3 {[%clk 0:01:29.2]} 34... h5 {[%clk
0:01:12.1]} 35. Ke4 {[%clk 0:01:21.4]} 35... g6 {[%clk 0:00:58.9]} 36. Be5
{[%clk 0:01:16.9]} 36... Ke6 {[%clk 0:00:56]} 37. d4 {[%clk 0:01:08.5]} 37... h4
{[%clk 0:00:45.9]} 38. d5+ {[%clk 0:01:07.1]} 38... Kd7 {[%clk 0:00:44.2]} 39.
b4 {[%clk 0:01:04.9]} 39... Be7 {[%clk 0:00:41.7]} 40. Kf3 {[%clk 0:01:00.3]}
40... Bxb4 {[%clk 0:00:39.7]} 41. Kg4 {[%clk 0:00:58]} 41... Be7 {[%clk
0:00:37.3]} 42. e4 {[%clk 0:00:56.4]} 42... g5 {[%clk 0:00:33.6]} 43. Bg7 {[%clk
0:00:54.8]} 43... Kd6 {[%clk 0:00:31.7]} 44. Bd4 {[%clk 0:00:53.2]} 44... Kd7
{[%clk 0:00:31.1]} 45. e5 {[%clk 0:00:46]} 45... Bc5 {[%clk 0:00:30.4]} 46. Bb2
{[%clk 0:00:35.5]} 46... Be7 {[%clk 0:00:29.2]} 47. e6+ {[%clk 0:00:32.6]} 47...
Kd8 {[%clk 0:00:29.1]} 48. Be5 {[%clk 0:00:32.4]} 48... Ke8 {[%clk 0:00:20]} 49.
d6 {[%clk 0:00:29]} 49... Bd8 {[%clk 0:00:20.1]} 50. e7 {[%clk 0:00:25.8]} 50...
Bxe7 {[%clk 0:00:20.2]} 51. dxe7 {[%clk 0:00:24.4]} 51... Kxe7 {[%clk
0:00:21.1]} 52. Bb8 {[%clk 0:00:23.2]} 52... Ke6 {[%clk 0:00:22]} 53. Bxa7
{[%clk 0:00:22.8]} 53... Kd6 {[%clk 0:00:21.1]} 54. Bxb6 {[%clk 0:00:22.5]}
54... Kc6 {[%clk 0:00:20.8]} 55. Bf2 {[%clk 0:00:22]} 1-0

[Event "*** SCC Grand Prix: Titled Tuesday Blitz"]
[Site "Chess.com"]
[Date "2020.09.08"]
[Round "2"]
[White "Chessdreamer2020"]
[Black "latixxa"]
[Result "0-1"]
[WhiteElo "2377"]
[BlackElo "2130"]
[TimeControl "180+1"]
[EndTime "10:18:36 PDT"]
[Termination "latixxa won on time"]

1. e4 {[%clk 0:02:45]} 1... e5 {[%clk 0:02:59.4]} 2. Nf3 {[%clk 0:02:44.1]} 2...
Nf6 {[%clk 0:02:59.3]} 3. d3 {[%clk 0:02:43.6]} 3... Nc6 {[%clk 0:02:54]} 4.
Nbd2 {[%clk 0:02:42.7]} 4... d6 {[%clk 0:02:49.3]} 5. Be2 {[%clk 0:02:42.6]}
5... g6 {[%clk 0:02:47.1]} 6. O-O {[%clk 0:02:42.9]} 6... Bg7 {[%clk 0:02:47.3]}
7. c3 {[%clk 0:02:43.5]} 7... O-O {[%clk 0:02:47.5]} 8. b4 {[%clk 0:02:43.6]}
8... Nh5 {[%clk 0:02:42.7]} 9. Re1 {[%clk 0:02:42.5]} 9... Nf4 {[%clk
0:02:40.9]} 10. Bf1 {[%clk 0:02:42.1]} 10... f5 {[%clk 0:02:32.9]} 11. g3 {[%clk
0:02:41.2]} 11... Nh5 {[%clk 0:02:28.9]} 12. Bg2 {[%clk 0:02:32.7]} 12... f4
{[%clk 0:02:26.6]} 13. Nc4 {[%clk 0:02:25.9]} 13... Be6 {[%clk 0:02:22.3]} 14.
b5 {[%clk 0:02:20.4]} 14... Ne7 {[%clk 0:02:20.9]} 15. Na5 {[%clk 0:02:20.5]}
15... Rb8 {[%clk 0:02:18.7]} 16. d4 {[%clk 0:02:18.7]} 16... Qc8 {[%clk
0:02:14.3]} 17. dxe5 {[%clk 0:02:15.9]} 17... dxe5 {[%clk 0:02:15.1]} 18. Ba3
{[%clk 0:02:16.3]} 18... Rf7 {[%clk 0:02:07.8]} 19. Ng5 {[%clk 0:02:15.8]} 19...
fxg3 {[%clk 0:01:42]} 20. hxg3 {[%clk 0:02:10]} 20... b6 {[%clk 0:01:07.4]} 21.
Nxf7 {[%clk 0:01:49.9]} 21... Kxf7 {[%clk 0:01:08.3]} 22. Qf3+ {[%clk 0:01:32]}
22... Nf6 {[%clk 0:01:05.3]} 23. Nc6 {[%clk 0:01:29.3]} 23... Nxc6 {[%clk
0:01:04.5]} 24. bxc6 {[%clk 0:01:30.2]} 24... Bg4 {[%clk 0:01:05.1]} 25. Qd3
{[%clk 0:01:29.2]} 25... h5 {[%clk 0:00:51.4]} 26. f3 {[%clk 0:01:22]} 26... Be6
{[%clk 0:00:49.9]} 27. Rf1 {[%clk 0:01:15.8]} 27... Qe8 {[%clk 0:00:44.5]} 28.
f4 {[%clk 0:01:12.1]} 28... exf4 {[%clk 0:00:43.8]} 29. gxf4 {[%clk 0:01:10.4]}
29... Rd8 {[%clk 0:00:40]} 30. Qe2 {[%clk 0:01:04.1]} 30... Bg4 {[%clk
0:00:32.4]} 31. Qc4+ {[%clk 0:01:00.7]} 31... Be6 {[%clk 0:00:32.4]} 32. Qe2
{[%clk 0:00:52]} 32... Bg4 {[%clk 0:00:31.1]} 33. Qe1 {[%clk 0:00:48.9]} 33...
Bh6 {[%clk 0:00:22.5]} 34. e5 {[%clk 0:00:46.2]} 34... Nd5 {[%clk 0:00:19.7]}
35. Qg3 {[%clk 0:00:37.1]} 35... Qxc6 {[%clk 0:00:16.2]} 36. Rac1 {[%clk
0:00:28.3]} 36... Qc4 {[%clk 0:00:16.2]} 37. Qh4 {[%clk 0:00:11.4]} 37... Re8
{[%clk 0:00:15.5]} 38. Bxd5+ {[%clk 0:00:09.2]} 38... Qxd5 {[%clk 0:00:16.4]}
39. Qf6+ {[%clk 0:00:09.4]} 39... Kg8 {[%clk 0:00:15.1]} 40. Qxg6+ {[%clk
0:00:09.7]} 40... Bg7 {[%clk 0:00:13.8]} 41. Rce1 {[%clk 0:00:09.2]} 41... Re6
{[%clk 0:00:12.9]} 42. Qg5 {[%clk 0:00:07.4]} 42... Qd2 {[%clk 0:00:11.5]} 43.
Qh4 {[%clk 0:00:05.5]} 43... Qxc3 {[%clk 0:00:11.7]} 44. Bc1 {[%clk 0:00:04.5]}
44... Qd4+ {[%clk 0:00:11.6]} 45. Qf2 {[%clk 0:00:04]} 45... Qc4 {[%clk
0:00:12.2]} 46. f5 {[%clk 0:00:03.7]} 46... Re8 {[%clk 0:00:11.5]} 47. f6 {[%clk
0:00:03.6]} 47... Rf8 {[%clk 0:00:12]} 48. e6 {[%clk 0:00:01.7]} 48... Bxe6
{[%clk 0:00:10.7]} 0-1